Cogmind - Beta 13 @@@ ROGUE MODE // 2024.03.31 @ 15:12:23 Player: gabr Result: Destroyed self with Grenade Launcher Performance ------------- Evolutions (2) 1000 Regions Visited (4) 800 Robots Destroyed (17) 85 Value Destroyed (381) 381 Prototype IDs (5) 100 Alien Tech Used (0) 0 Bonus (65) 65 TOTAL SCORE: 2431 Bonus ------- Follower Combat Kills 65 Cogmind --------- Core Integrity 0/550 Matter 212/300 Energy 36/100 System Corruption 0% Temperature Cool (0) Movement Core (150) Ox2 Location -8/Materials Parts ------- > --- POWER (2) -------- (None) > --- PROPULSION (5) --- (None) > --- UTILITY (2) ------ Improved Heat Sink Small Storage Unit > --- WEAPON (2) ------- Grenade Launcher > --- INVENTORY (8) ---- Ion Engine Light Ion Engine Small Storage Unit Heavy Armor Plating Improved Datajack Peak State ------------ > --- POWER ------------ Ion Engine Light Nuclear Core > --- PROPULSION ------- Aluminum Leg Aluminum Leg > --- UTILITY ---------- Small Storage Unit Shield Generator > --- WEAPON ----------- Light Cannon Improved Datajack > --- INVENTORY -------- Ion Engine Light Ion Engine Small Storage Unit Heavy Armor Plating Grenade Launcher Mining Laser [Rating: 14] Favorites ----------- Power Ion Engine Engine Ion Engine Power Core Light Nuclear Core Propulsion Aluminum Leg Leg Aluminum Leg Utility Small Storage Unit Device Shield Generator Storage Small Storage Unit Weapon Spread Laser Energy Gun Spread Laser Ballistic Gun Light Assault Rifle Ballistic Cannon Light Cannon Launcher Grenade Launcher Special Weapon Mining Laser Special Melee Weapon Improved Datajack Build | -11 -10 -10 -10 -8 ------- Run | Yrd Mat Min Sub Mat Slots Evolved 4 | . . . . 4 Power 1 | . . . . 1 Propulsion 3 | . . . . 3 Utility . | . . . . . Weapon . | . . . . . Parts Attached 31 | 6 4 7 1 13 Power 6 | 1 . 3 . 2 Engine 5 | 1 . 3 . 1 Core 1 | . . . . 1 Reactor . | . . . . . Propulsion 7 | 2 . 4 . 1 Treads . | . . . . . Leg 7 | 2 . 4 . 1 Wheel . | . . . . . Hover . | . . . . . Flight . | . . . . . Utility 6 | 1 2 . . 3 Device 4 | . 2 . . 2 Storage 2 | 1 . . . 1 Processor . | . . . . . Hackware . | . . . . . Protection . | . . . . . Artifact . | . . . . . Weapon 12 | 2 2 . 1 7 Energy Gun 5 | . 2 . 1 2 Energy Cannon . | . . . . . Ballistic Gun 2 | 2 . . . . Ballistic Cannon 1 | . . . . 1 Launcher 1 | . . . . 1 Special Weapon 2 | . . . . 2 Impact Weapon . | . . . . . Slashing Weapon . | . . . . . Piercing Weapon . | . . . . . Special Melee Weapon 1 | . . . . 1 Unidentified Prototypes . | . . . . . Parts Lost 11 | . . 2 . 9 Power 2 | . . . . 2 Propulsion 2 | . . . . 2 Utility 2 | . . 1 . 1 Weapon 5 | . . 1 . 4 Highest Loss Streak 8 | . . 1 . 8 To Critical Strikes . | . . . . . Average Slot Usage (%) 83 | . 96 93 85 55 Engine 12 | . 14 14 14 10 Core 1 | . . . . 4 Leg 24 | . 28 28 28 14 Device 7 | . 10 10 . 3 Storage 12 | . 14 14 14 9 Energy Gun 20 | . 19 25 28 10 Ballistic Gun 2 | . 8 . . . Naked Turns . | . . . . . Heaviest Build 23 | 13 18 18 14 23 Greatest Support 20 | 20 20 20 20 20 Greatest Overweight (x) 2 | . . 1 . 2 Average Overweight (x) . | . . . . . Largest Inventory Capacity 8 | 8 8 8 8 8 Average Capacity 7 | 6 8 8 8 8 Most Carried 8 | 6 8 8 6 8 Average Carried 7 | 2 7 7 6 7 Final Capacity 8 | 8 8 8 8 8 Final Carried 8 | 6 8 7 6 6 Class Distribution -------------------- 100% | Mutant Dominant Class ---------------- Mutant | -10/Materials Mutant | -10/Mines Mutant | -10/Subcaves Mutant | -8/Materials Resources | -11 -10 -10 -10 -8 ----------- Run | Yrd Mat Min Sub Mat Matter Collected 503 | 235 97 30 50 91 Remotely . | . . . . . Salvage Created 444 | . 222 215 . 7 Parts 31 | . 4 25 . 2 Haulers Intercepted 1 | . 1 . . . Recyclers Shooed 3 | . 1 2 . . Parts Field Recycled . | . . . . . Retrieved Matter . | . . . . . Parts Self-Destructed . | . . . . . Prevented . | . . . . . Kills | -11 -10 -10 -10 -8 ------- Run | Yrd Mat Min Sub Mat Combat Hostiles Destroyed 14 | . 3 10 . 1 Guns 13 | . 3 10 . . AOE 1 | . . . . 1 Classes Destroyed 4 | . 3 1 . . Hauler 1 | . 1 . . . Recycler 2 | . 1 1 . . Swarmer 7 | . . 6 . 1 Grunt 7 | . 3 4 . . Best Kill Streak 4 | . 2 4 . 1 Combat Bots Only 3 | . 2 3 . 1 Max Kills in Single Turn 2 | . 1 2 . 1 Gunslinging 1 | . . 1 . . Exploded 1 | . . . . 1 Melee . | . . . . . Uniques/NPCs Destroyed . | . . . . . Combat | -11 -10 -10 -10 -8 -------- Run | Yrd Mat Min Sub Mat Hostile Shots Fired 169 | . 16 48 1 104 Missed 34 | . 7 7 . 20 Damage Taken 1752 | . 113 401 18 1220 Core 673 | . 15 73 18 567 Absorbed by Shields 233 | . 3 96 . 134 Core Remaining (%) 78 | 100 . . 57 . Volleys Fired 62 | . 14 22 . 26 Largest 2 | . 2 2 . 2 Hottest 135 | . 130 130 . 135 Shots Fired 95 | . 28 35 . 32 Gun 67 | . 28 35 . 4 Cannon 23 | . . . . 23 Launcher 1 | . . . . 1 Special 4 | . . . . 4 Kinetic 39 | . 16 . . 23 Thermal 55 | . 12 35 . 8 Explosive 1 | . . . . 1 Electromagnetic . | . . . . . Robot Hit Streak 12 | . 9 11 . 12 Robot Miss Streak 7 | . 6 7 . 4 Penetration Max . | . . . . . Secondary Targets 1 | . . 1 . . Max Gunslinging Chain 1 | . . 1 . . Shots Hit Robots 81 | . 23 34 . 24 Core Hits 82 | . 19 48 . 15 Critical Kills 1 | . 1 . . . Critical Parts Destroyed . | . . . . . Critical Strikes 1 | . 1 . . . Destroy 1 | . 1 . . . Melee Attacks 2 | . . . . 2 Impact . | . . . . . Slashing . | . . . . . Piercing . | . . . . . Sneak Attacks . | . . . . . Combat Hostiles . | . . . . . Follow-up Attacks . | . . . . . Damage Inflicted 1165 | . 256 432 . 477 Guns 743 | . 256 432 . 55 Cannons 344 | . . . . 344 Explosions 43 | . . . . 43 Melee . | . . . . . Ramming 11 | . . . . 11 Kinetic 482 | . 138 . . 344 Thermal 629 | . 118 432 . 79 Explosive 43 | . . . . 43 Electromagnetic . | . . . . . Impact . | . . . . . Slashing . | . . . . . Piercing . | . . . . . Highest Corruption . | . . . . . Average Corruption . | . . . . . Corruption Purged . | . . . . . Corruption Blocked . | . . . . . Overload Shots . | . . . . . Overflow Damage . | . . . . . Projectiles . | . . . . . Explosions . | . . . . . Melee . | . . . . . Knockbacks 15 | . . . . 15 Impact . | . . . . . Kinetic 10 | . . . . 10 Secondary 5 | . . . . 5 Self-Inflicted Damage 45 | . . . . 45 Shots 1 | . . . . 1 Rammed 2 | . . . . 2 Targets Rammed 2 | . . . . 2 Kicked . | . . . . . Crushed . | . . . . . Highest Temperature 405 | . 142 405 . 263 Average Temperature 138 | . 55 149 . 171 Received Heat Transfer 864 | . 61 247 . 556 Effects 6 | . . 5 . 1 Shutdowns 1 | . . 1 . . Interference 1 | . . . . 1 Short Circuit 1 | . . 1 . . Damage (major) 3 | . . 3 . . Siege Activations . | . . . . . Robots Corrupted . | . . . . . Combat Hostiles . | . . . . . Parts Fried . | . . . . . Impact Corruptions . | . . . . . Robots Melted . | . . . . . Combat Hostiles . | . . . . . Parts Melted 2 | . 1 1 . . Heat Transferred 815 | . 150 550 . 115 Parts Sabotaged . | . . . . . Parts Stolen . | . . . . . Parts Stripped . | . . . . . Power Chain Reactions . | . . . . . Alert | -11 -10 -10 -10 -8 ------- Run | Yrd Mat Min Sub Mat Peak Influence 307 | . 135 307 . 42 Initial 52 | . . 52 . 15 Average 82 | . 63 159 . 17 Maximum Alert Level 1 | . . 1 . . Low Security (%) 81 | 100 100 50 . 100 Level 1 18 | . . 49 . . Level 2 . | . . . . . Level 3 . | . . . . . Level 4 . | . . . . . Level 5 . | . . . . . High Security . | . . . . . Max Security . | . . . . . Squads Dispatched 3 | . 2 . . 1 Investigation 1 | . . . . 1 Extermination . | . . . . . Reinforcement 2 | . 2 . . . Assault . | . . . . . Garrison . | . . . . . Intercept . | . . . . . Searches Triggered . | . . . . . Construction Impeded . | . . . . . Haulers Reinforced . | . . . . . Active Scanning Responses . | . . . . . Cargo Convoy Interrupts . | . . . . . Stealth | -11 -10 -10 -10 -8 --------- Run | Yrd Mat Min Sub Mat Distress Signals 1 | . . . . 1 Communications Jammed . | . . . . . Distress Signals . | . . . . . Times Spotted 30 | . 7 11 2 10 Peak Tracking Total 8 | . 2 3 2 8 Tactical Retreats 1 | . . 1 . . Traps | -11 -10 -10 -10 -8 ------- Run | Yrd Mat Min Sub Mat Traps Triggered 3 | . . . . 3 Indirectly . | . . . . . Trap Hack Attempts . | . . . . . Triggered . | . . . . . Disarmed . | . . . . . Reprogrammed . | . . . . . Reused . | . . . . . Traps Extracted . | . . . . . Installed . | . . . . . Triggered . | . . . . . Machines | -11 -10 -10 -10 -8 ---------- Run | Yrd Mat Min Sub Mat Machines Disabled 2 | . . . . 2 Max in Single Turn 1 | . . . . 1 Machines Repaired . | . . . . . Machines Dismantled . | . . . . . Machines Sabotaged . | . . . . . Overloaded Fab Kills . | . . . . . Hacking | -11 -10 -10 -10 -8 --------- Run | Yrd Mat Min Sub Mat Machines Accessed 5 | . 2 . . 3 Terminals 4 | . 2 . . 2 Fabricators . | . . . . . Repair Stations 1 | . . . . 1 Recycling Units . | . . . . . Scanalyzers . | . . . . . Garrison Access . | . . . . . Total Hacks 9 | . 3 . . 6 Successful 4 | . 2 . . 2 Failed 5 | . 1 . . 4 Catastrophic . | . . . . . Database Lockouts . | . . . . . Manual 2 | . 1 . . 1 Terminals 6 | . 3 . . 3 Fabricators . | . . . . . Repair Stations 3 | . . . . 3 Recycling Units . | . . . . . Scanalyzers . | . . . . . Garrison Access . | . . . . . Terminal Hacks 3 | . 2 . . 1 Prototype ID Bank 2 | . 1 . . 1 Branch Access Points 1 | . 1 . . . Fabricator Hacks . | . . . . . Repair Station Hacks 1 | . . . . 1 Scan Component 1 | . . . . 1 Recycling Unit Hacks . | . . . . . Scanalyzer . | . . . . . Garrison Access Hacks . | . . . . . Unauthorized Hacks . | . . . . . Terminals . | . . . . . Fabricators . | . . . . . Repair Stations . | . . . . . Recycling Units . | . . . . . Scanalyzers . | . . . . . Garrison Access . | . . . . . Data Cores Recovered . | . . . . . Used . | . . . . . Hacking Detections 4 | . 1 . . 3 Full Trace Events 1 | . . . . 1 Feedback Events . | . . . . . Feedback Blocked . | . . . . . Robot Schematics Acquired . | . . . . . Robots Built . | . . . . . Authchips . | . . . . . Time . | . . . . . Total Robot Build Rating . | . . . . . Part Schematics Acquired . | . . . . . Parts Built . | . . . . . Authchips . | . . . . . Time . | . . . . . Total Part Build Rating . | . . . . . Parts Repaired . | . . . . . Time . | . . . . . Parts Recycled . | . . . . . Recycled Matter . | . . . . . Retrieved Matter . | . . . . . Retrieved Components . | . . . . . Parts Scanalyzed . | . . . . . Part Schematics Acquired . | . . . . . Parts Damaged . | . . . . . Bothacking | -11 -10 -10 -10 -8 ------------ Run | Yrd Mat Min Sub Mat Used RIF Installer . | . . . . . Robots Hacked 2 | . . . . 2 Non-combat . | . . . . . Combat 2 | . . . . 2 Robot Hacks Applied 2 | . . . . 2 parse_system 2 | . . . . 2 Relay Couplers Released . | . . . . . Fabnet Peak Effective % . | . . . . . Robots Rewired . | . . . . . Allies Hacked . | . . . . . Hacks Repelled . | . . . . . Allies | -11 -10 -10 -10 -8 -------- Run | Yrd Mat Min Sub Mat Total Allies 3 | . . 3 . . Largest Group 3 | . . 3 3 2 Highest-Rated Group 40 | . . 40 40 24 Highest-Rated Ally 16 | . . 16 16 16 Total Orders . | . . . . . Ally Attacks 29 | . . . 16 13 Total Damage 340 | . . . 196 144 Kills 3 | . . . 2 1 Allies Corrupted . | . . . . . Allies Melted . | . . . . . Intel | -11 -10 -10 -10 -8 ------- Run | Yrd Mat Min Sub Mat Robot Analysis Total . | . . . . . Derelict Logs Recovered 2 | . . 1 1 . Drone Launches . | . . . . . Drone Recoveries . | . . . . . Exploration | -11 -10 -10 -10 -8 ------------- Run | Yrd Mat Min Sub Mat Turns Passed 1414 | 87 342 469 176 340 Spaces Moved 898 | 63 238 285 130 182 Core 38 | 4 . . . 34 Treads . | . . . . . Legs 860 | 59 238 285 130 148 Wheels . | . . . . . Hover . | . . . . . Flight . | . . . . . Fastest Speed 50 | 50 120 120 120 100 Average Speed 121 | 115 120 120 120 129 Slowest Speed 190 | 120 120 190 120 190 Overloaded Moves . | . . . . . Propulsion Burnouts . | . . . . . Robots Hopped . | . . . . . Cave-ins Triggered . | . . . . . Exploration Rate (%) 28 | 4 58 53 12 15 Regions Visited 4 Branch Regions 2 Pre-discovered Areas . | . . . . . Known Exits Taken 2 | . 1 . 1 . Unknown Exits Taken 2 | 1 . 1 . . Scrap Searched . | . . . . . Spaces Dug . | . . . . . Terrain Destroyed 1 | . . . . 1 Melee . | . . . . . Projectile 1 | . . . . 1 AOE . | . . . . . Terrain Rammed . | . . . . . Walls Destroyed . | . . . . . Machines Disabled . | . . . . . Actions | -11 -10 -10 -10 -8 --------- Run | Yrd Mat Min Sub Mat Total 1117 | 74 269 379 150 245 Wait 96 | . 4 57 20 15 Move 894 | 62 237 284 129 182 Hop . | . . . . . Pick Up 13 | 6 4 1 . 2 Fast Attach 17 | 6 4 . . 7 Attach 5 | . . . 1 4 Detach 2 | . 1 . . 1 Swap 9 | . . 7 . 2 Drop 15 | . 5 8 . 2 Fire 62 | . 14 22 . 26 Melee 2 | . . . . 2 Ram 2 | . . . . 2 Kick . | . . . . . Crush . | . . . . . Escape Stasis . | . . . . . Rewire . | . . . . . Trap . | . . . . . Miscellaneous . | . . . . . Route ------- -11/Scrapyard -10/Materials (discovered 2 exits: [*Mat] / *Min) -10/Mines (discovered 2 exits: [*Mat] / [*Sub]) -10/Subcaves -8/Materials History --------- Turn | Location | Event 20 | -11/Scrapyard | Discovered new exit (range 16) 88 | -11/Scrapyard | Entered Materials 260 | -10/Materials | Discovered new exit (range 8) 311 | -10/Materials | Build established: Mutant 387 | -10/Materials | Identified exit to Mines 430 | -10/Materials | Entered Mines 430 | -10/Mines | Discovered new exit (range 15) 460 | -10/Mines | Learned Materials emergency access door positions 882 | -10/Mines | Assisted by bots powering up and referring to "LRC-V3" 891 | -10/Mines | Discovered new exit (range 5) 899 | -10/Mines | Entered Subcaves 899 | -10/Subcaves | Accompanied by 3 allies 915 | -10/Subcaves | Identified exit to Materials 1075 | -10/Subcaves | Entered Materials 1075 | -8/Materials | Accompanied by 2 allies 1075 | -8/Materials | Evolved 4 slots: Power x1, Propulsion x3 1379 | -8/Materials | Core integrity fell below 50% 1397 | -8/Materials | Lost 8 parts (2p2n1u3w) 1407 | -8/Materials | Core integrity fell below 20% 1415 | -8/Materials | Destroyed self with Grenade Launcher Last Messages --------------- 01377_ M-28 Smith repairs Lgt. Angular Momentum Engine. 01378_ Slammed into G-47 Trooper. 01378_ Destabilizing: Core damaged (-27). 01378_ Triggered Explosive Trap. 01378_ An explosion rips through the floor. 01380_ K-01 Serf cleans the Terminal. 01381_ Acquired Imp. Heat Sink. 01382_ Acquired 48 matter. 01383_ Acquired 7 matter. 01384_ Acquired 36 matter. 01385_ K-01 Serf collects debris. 01388_ M-28 Smith repairs G-47 Trooper. 01390_ M-28 Smith repairs Aluminum Leg. 01392_ W-25 Informer sends out distress signal. 01400_ Acquired Mining Laser. 01406_ Electrolysis Chamber disabled. 01406_ G-47 Trooper destroyed. 01410_ Mining Laser destroyed. 01415_ S-10 Pest destroyed. 01415_ Electrolysis Chamber disabled. Map ----- +----------------------------------------------------+ | ????????# ####### #??? | | ????????# " #??? | | ????????# "T #??? | | ????????# #??? | | ????????# ####### #??? | | ????????## ^ ##############??? | | ?????????# # #?????? | | ?????????# # #?????? | | ?????????# # """ """ #?????? | | ?????????# # """ """ #?????? | | ?????????# + """ """ #?????? | | ?????????# # #?????? | | ?????????# # #?????? | | ?????????# # #?????? | | ?????????# ####+######?????? | | ?????????# #??# #??????????? | | ?????????# #??# #???#####??? | | ?????????# #??# #???#"""#??? | | ?????????# #??# #???#"T"#??? | | ?????????# #??# #?###" "#### | | ?????????# #??# #?# # | | ?????????# #??# #?# """s"" # | | ????##+### #### ###m""" """# | | ?? # "" R"# | | ?? + g%%="""# | | ?? # " =@ # | | ???###+########### ## """ s # | | ?????????????????# ## """s # | | ?????????????????# ## g # | | ??+??????????????# ########### | | ???????????????### ##########? | | ???????????????# # # | | ???????????????# T # # | | ???????????????# "" + """"" # | | ???????????????# % # """"" # | | ???????????????# %% # """"" # | | ?????????????##### ####### | | ?????????????# ! #????? | | ?????????????# "" #????? | | ?????????????# """ ##????? | | ?????????????# """"" ! ##????? | | ?????????????# """" #????? | | ?????????????# """ #????? | | ?????????????# ##????? | | ?????????????# #?????? | | ?????????????##### #????? | | ?????????????????########????? | | ?????????????????????????????? | | ?????????????????????????????? | | ?????????????????????????????? | +----------------------------------------------------+ Best States ------------- Heat Dissipation 45 Energy Generation 19 Energy Capacity 400 Matter Stores 300 Matter Capacity 300 Sight Range 16 Terrain Scan Density 10 Evasion (%) 55 Item Schematics ----------------- None Robot Schematics ------------------ None Fabricated ------------ Nothing Alien Tech Used ----------------- None Achievements -------------- None Challenges ------------ None Game ------ Seed DisruptorShadingNanovents Manual? 0 Play Time 00:15:30 Cumulative 34.3 hours Start 2024.03.31 @ 13:14:28 End 2024.03.31 @ 15:12:23 Sessions 1 Manual Loads 0 Difficulty Rogue Special Mode None Game No. 75 Rogue 75 Adventurer 0 Explorer 0 Win Type - Total 0 Types 0/0/0/0/0/0/0/0/0 Lore% 20 Gallery% 29 Achievement% 25 Wizard Run 0 Options --------- Layout 0 ASCII 0 Keyboard 1 Movement Numpad Keybinds 0 Fullscreen 1 Font 18/X11 Map View 76x50 Zoom Use 0% Tactical HUD 1 Map Filters NONE Filters NONE Steam 1 RUN: 42f95ccf-f96a-4129-9de9-62cfb3c5d4a8